bitfinex/quotes_SOLUSD_20230105
["timestamp","ask_amount","ask_price","bid_price","bid_amount"]
[1672930671081,111.4745,13.167,13.155,20.0]
[1672930671310,111.4745,13.167,13.157,20.0]
[1672930673396,111.4745,13.167,13.157,77.05]
[1672930674008,13.06,13.17,13.157,77.05]
[1672930674563,13.06,13.17,13.158,39.41737149]
[1672930674769,13.06,13.17,13.158,17.0]
[1672930675179,13.06,13.17,13.159,20.0]
[1672930675496,13.06,13.17,13.16,17.0]
[1672930676547,56.98,13.173,13.161,20.0]
[1672930676747,76.95,13.179,13.162,20.0]
[1672930676957,76.95,13.179,13.163,20.0]
[1672930677178,99.36737149,13.179,13.164,20.0]
[1672930677709,79.36737149,13.179,13.165,20.0]
[1672930678024,17.0,13.178,13.165,20.0]
[1672930678238,76.96,13.177,13.165,20.0]
[1672930678559,17.0,13.176,13.165,20.0]
[1672930679162,37.0,13.176,13.165,20.0]
[1672930679688,17.0,13.176,13.164,20.0]
[1672930680065,56.97,13.175,13.164,20.0]
[1672930680215,17.0,13.174,13.164,20.0]
[1672930680547,17.0,13.176,13.164,20.0]
[1672930680756,20.0,13.176,13.164,20.0]
[1672930680951,17.0,13.175,13.164,20.0]
[1672930681373,73.97,13.176,13.164,20.0]
[1672930681602,20.0,13.175,13.164,20.0]
[1672930681807,73.97,13.176,13.164,20.0]
[1672930682038,17.0,13.176,13.164,20.0]
[1672930682240,17.0,13.177,13.164,20.0]
[1672930682433,200.2119,13.18,13.164,20.0]
[1672930682434,56.97,13.176,13.164,20.0]
[1672930682772,237.1619,13.18,13.165,57.01]
[1672930682959,22.41737149,13.178,13.166,20.0]
[1672930683179,19.5,13.176,13.166,20.0]
[1672930683498,79.37737149,13.178,13.165,20.0]
[1672930683708,20.0,13.179,13.165,20.0]
[1672930684027,56.96,13.178,13.165,20.0]
[1672930684255,127.2319,13.18,13.166,57.01]
[1672930684433,127.2319,13.18,13.167,118.5397]
[1672930684636,179.8419,13.18,13.163,20.0]
[1672930684866,136.96550967,13.179,13.161,59.74033053]
[1672930685055,20.0,13.178,13.156,20.0]
[1672930685260,76.96,13.177,13.156,42.41737149]
[1672930685493,99.37737149,13.177,13.156,42.41737149]
[1672930685911,20.0,13.175,13.156,42.41737149]
[1672930686125,73.97,13.174,13.159,17.0]
[1672930686317,79.38737149,13.174,13.159,17.0]
[1672930686562,22.41737149,13.174,13.159,17.0]
[1672930686761,22.41737149,13.174,13.16,234.4383]
[1672930687091,22.41737149,13.174,13.162,20.0]
[1672930687271,56.95,13.179,13.163,17.0]
[1672930687476,79.36737149,13.179,13.164,20.0]
[1672930687689,79.36737149,13.179,13.165,131.7359]
[1672930687897,79.36737149,13.179,13.166,20.0]
[1672930688116,79.36737149,13.179,13.167,119.7024]
[1672930688845,20.0,13.178,13.167,119.7024]
[1672930689058,56.96,13.177,13.167,119.7024]
[1672930689409,17.0,13.176,13.167,119.7024]
[1672930689802,22.41737149,13.177,13.167,119.7024]
[1672930690002,56.95,13.179,13.168,20.0]
[1672930690215,122.78,13.18,13.168,20.0]
[1672930690647,65.83,13.18,13.169,17.0]
[1672930690858,65.83,13.18,13.168,20.0]
[1672930690859,13.15,13.18,13.168,20.0]
[1672930691061,70.1,13.18,13.168,20.0]
[1672930691272,13.15,13.18,13.168,20.0]
[1672930691470,35.56737149,13.18,13.168,20.0]
[1672930691906,13.15,13.18,13.168,20.0]
[1672930692433,13.15,13.18,13.169,17.0]
[1672930692651,13.15,13.18,13.17,20.0]
[1672930693467,35.56737149,13.18,13.17,20.0]
[1672930693681,17.0,13.179,13.17,20.0]
[1672930693881,13.15,13.18,13.17,20.0]
[1672930694310,13.15,13.18,13.171,20.0]
[1672930694746,13.15,13.18,13.172,20.0]
[1672930694946,13.15,13.18,13.173,20.0]
[1672930697881,17.0,13.179,13.173,20.0]
[1672930698526,17.0,13.179,13.172,20.0]
[1672930699412,17.0,13.179,13.169,57.0]
[1672930699572,17.0,13.179,13.168,57.0]
[1672930699902,22.41737149,13.178,13.167,119.7024]
[1672930700107,37.0,13.177,13.168,20.0]
[1672930700463,22.41737149,13.176,13.168,20.0]
[1672930700618,17.0,13.175,13.167,119.7024]
[1672930700941,40.0,13.174,13.15,20.0]
[1672930701133,13.19,13.17,13.159,112.305]
[1672930701343,17.0,13.169,13.15,20.0]
[1672930701573,57.0,13.168,13.153,242.7148]
[1672930701799,17.0,13.167,13.153,242.7148]
[1672930701982,39.41737149,13.167,13.153,242.7148]
[1672930702196,39.41737149,13.167,13.156,20.0]
[1672930702397,22.41737149,13.166,13.153,242.7148]
[1672930703673,57.0,13.169,13.153,265.13217149]
[1672930703874,57.0,13.169,13.157,20.0]
[1672930704097,13.21,13.17,13.157,20.0]
[1672930704296,13.21,13.17,13.157,42.41737149]
[1672930704510,22.41737149,13.175,13.158,20.0]
[1672930704719,22.41737149,13.175,13.159,17.0]
[1672930704926,22.41737149,13.175,13.161,20.0]
[1672930705263,22.41737149,13.175,13.163,20.0]
[1672930705463,20.0,13.178,13.164,51.74]
[1672930705688,56.95,13.179,13.165,20.0]
[1672930705894,56.95,13.179,13.166,17.0]
[1672930706214,56.95,13.179,13.167,113.1959]
[1672930706421,79.36737149,13.179,13.168,20.0]
[1672930707041,17.0,13.178,13.168,20.0]
[1672930707469,79.36737149,13.179,13.168,20.0]
[1672930708215,22.41737149,13.178,13.168,20.0]
[1672930710932,22.41737149,13.178,13.169,17.0]
[1672930712255,22.41737149,13.178,13.167,113.1959]
[1672930712712,17.0,13.177,13.167,113.1959]
[1672930713152,17.0,13.177,13.164,20.0]
[1672930713153,22.41737149,13.176,13.164,20.0]
[1672930713343,17.0,13.175,13.164,20.0]
[1672930713783,22.41737149,13.174,13.164,20.0]
[1672930714100,17.0,13.173,13.164,20.0]
[1672930714522,39.41737149,13.173,13.163,20.0]
[1672930714824,39.41737149,13.173,13.164,20.0]
[1672930715235,39.41737149,13.173,13.163,20.0]
[1672930715453,39.41737149,13.173,13.163,40.0]
[1672930715667,39.41737149,13.173,13.163,20.0]
[1672930716820,13.19,13.17,13.163,20.0]
[1672930717468,35.60737149,13.17,13.163,20.0]
[1672930720616,61.80737149,13.17,13.163,20.0]
[1672930720826,17.0,13.169,13.161,20.0]
[1672930721348,39.41737149,13.169,13.161,20.0]
[1672930721973,39.41737149,13.169,13.158,169.1845]
[1672930722300,20.0,13.168,13.158,112.1445]
[1672930722500,17.0,13.167,13.158,112.1445]
[1672930722708,39.41737149,13.167,13.158,112.1445]
[1672930723461,22.41737149,13.166,13.158,112.1445]
[1672930723874,37.0,13.165,13.154,57.06]
[1672930724091,37.0,13.165,13.154,173.4752]
[1672930724301,22.41737149,13.164,13.155,20.0]
[1672930727024,77.0,13.168,13.156,17.0]
[1672930727241,22.41737149,13.166,13.156,17.0]
[1672930727651,22.41737149,13.166,13.157,20.0]
[1672930728510,65.67,13.17,13.158,17.0]
[1672930728718,22.41737149,13.169,13.158,17.0]
[1672930729752,13.25,13.17,13.158,17.0]
[1672930729972,22.41737149,13.169,13.158,17.0]
[1672930730185,22.41737149,13.169,13.158,74.04]
[1672930730397,22.41737149,13.169,13.158,17.0]
[1672930732930,17.0,13.168,13.157,57.05]
[1672930733143,22.41737149,13.169,13.157,20.0]
[1672930733339,22.41737149,13.167,13.156,57.05]
[1672930733543,22.41737149,13.167,13.155,77.06]
[1672930734521,22.41737149,13.167,13.155,20.0]
[1672930735471,22.41737149,13.167,13.156,17.0]
[1672930736300,22.41737149,13.167,13.157,77.05]
[1672930736615,122.8,13.17,13.158,17.0]
[1672930736816,65.81,13.17,13.158,17.0]
[1672930737030,20.0,13.168,13.158,17.0]
[1672930737771,42.41737149,13.168,13.158,17.0]
[1672930738496,22.41737149,13.168,13.158,17.0]
[1672930738927,13.25,13.17,13.159,20.0]
[1672930739141,13.25,13.17,13.16,17.0]
[1672930739345,134.80027149,13.174,13.161,77.03]
[1672930739551,134.80027149,13.174,13.163,20.0]
[1672930739764,134.80027149,13.174,13.164,20.0]
[1672930739976,134.80027149,13.174,13.165,17.0]
[1672930740187,22.41737149,13.174,13.166,20.0]
[1672930742691,20.0,13.172,13.166,20.0]
[1672930742896,17.0,13.171,13.166,20.0]
[1672930743125,39.41737149,13.171,13.162,20.0]
[1672930743362,13.14,13.17,13.158,57.04]
[1672930743551,13.14,13.17,13.153,130.6574]
[1672930743552,20.0,13.169,13.157,20.0]
[1672930744162,33.14,13.17,13.157,20.0]
[1672930744163,13.14,13.17,13.157,20.0]
[1672930745485,33.14,13.17,13.157,20.0]
[1672930746494,13.14,13.17,13.157,20.0]
[1672930746907,13.14,13.17,13.159,20.0]
[1672930747119,13.14,13.17,13.16,17.0]
[1672930747871,13.14,13.17,13.159,20.0]
[1672930748062,13.14,13.17,13.161,17.0]
[1672930748266,76.97,13.175,13.161,17.0]
[1672930748486,76.97,13.175,13.162,20.0]
[1672930748798,13.1,13.17,13.161,109.4968]
[1672930749434,13.1,13.17,13.157,57.05]
[1672930749658,13.1,13.17,13.158,17.0]
[1672930749978,33.1,13.17,13.158,17.0]
[1672930750193,33.1,13.17,13.157,57.05]
[1672930750388,17.0,13.169,13.157,57.05]
[1672930750609,33.1,13.17,13.157,57.05]
[1672930751439,13.1,13.17,13.157,57.05]
[1672930751772,13.1,13.17,13.159,20.0]
[1672930751966,13.1,13.17,13.16,17.0]
[1672930755131,56.97,13.175,13.16,17.0]
[1672930755325,56.97,13.176,13.162,20.0]
[1672930755649,113.3472,13.177,13.163,74.02]
[1672930755862,113.3472,13.177,13.164,131.8588]
[1672930756069,113.3472,13.177,13.166,20.0]
[1672930756269,56.96,13.178,13.166,20.0]
[1672930757035,17.0,13.177,13.166,20.0]
[1672930757248,37.0,13.177,13.165,20.0]
[1672930757438,17.0,13.177,13.166,20.0]
[1672930757753,79.37737149,13.178,13.166,20.0]
[1672930758076,13.1,13.18,13.167,17.0]
[1672930758388,13.1,13.18,13.168,20.0]
[1672930758588,13.1,13.18,13.169,17.0]
[1672930759627,33.1,13.18,13.169,17.0]
[1672930760439,13.1,13.18,13.169,17.0]
[1672930760594,13.1,13.18,13.17,20.0]
[1672930760808,13.1,13.18,13.171,20.0]
[1672930761016,13.1,13.18,13.172,20.0]
[1672930761954,13.1,13.18,13.169,20.0]
[1672930762171,13.1,13.18,13.17,37.0]
[1672930762373,13.1,13.18,13.172,20.0]
[1672930764176,165.1614064,13.188,13.173,17.0]
[1672930764383,165.1614064,13.188,13.174,20.0]
[1672930764576,76.92,13.187,13.175,17.0]
[1672930764780,76.92,13.187,13.176,20.0]
[1672930764996,20.0,13.187,13.176,20.0]
[1672930765534,165.1614064,13.188,13.177,17.0]
[1672930768575,165.1614064,13.188,13.174,129.0117]
[1672930768791,20.0,13.187,13.175,17.0]
[1672930769112,20.0,13.187,13.176,40.0]
[1672930769330,20.0,13.187,13.176,20.0]
[1672930770067,165.1614064,13.188,13.176,20.0]
[1672930770263,17.0,13.187,13.176,40.0]
[1672930770486,20.0,13.186,13.176,20.0]
[1672930771412,17.0,13.185,13.176,20.0]
[1672930772491,20.0,13.186,13.176,20.0]
[1672930772997,20.0,13.184,13.176,20.0]
[1672930773953,37.0,13.183,13.168,57.0]
[1672930774155,13.14,13.18,13.168,57.0]
[1672930775221,17.0,13.179,13.167,112.8183]
[1672930776671,17.0,13.179,13.168,20.0]
[1672930777307,13.14,13.18,13.168,20.0]
[1672930777845,13.14,13.18,13.169,17.0]
[1672930781022,17.0,13.179,13.167,169.8283]
[1672930781327,20.0,13.178,13.168,17.0]
[1672930781535,17.0,13.179,13.168,17.0]
[1672930782066,56.94,13.182,13.169,20.0]
[1672930782379,56.93,13.184,13.171,20.0]
[1672930782564,56.92,13.186,13.172,37.0]
[1672930782776,56.92,13.186,13.172,20.0]
[1672930783005,20.0,13.185,13.172,20.0]
[1672930783208,17.0,13.184,13.172,20.0]
[1672930783760,20.0,13.183,13.172,20.0]
[1672930783961,13.05,13.18,13.172,20.0]
[1672930784687,13.05,13.18,13.171,56.99]
[1672930784999,13.05,13.18,13.168,57.0]
[1672930785320,13.05,13.18,13.169,17.0]
[1672930785525,13.05,13.18,13.168,17.0]
[1672930785741,13.05,13.18,13.169,20.0]
[1672930786053,13.05,13.18,13.17,17.0]
[1672930788062,13.05,13.18,13.169,17.0]
[1672930789419,17.0,13.179,13.168,57.0]
[1672930789644,20.0,13.178,13.166,57.01]
[1672930789832,20.0,13.178,13.168,74.0]
[1672930790048,20.0,13.178,13.168,17.0]
[1672930791836,20.0,13.178,13.165,57.01]
[1672930792051,17.0,13.177,13.165,57.01]
[1672930795296,17.0,13.178,13.165,57.01]
[1672930796258,17.0,13.179,13.165,57.01]
[1672930796990,17.0,13.179,13.169,20.0]
[1672930797502,17.0,13.179,13.168,57.0]
[1672930797503,17.0,13.179,13.168,77.0]
[1672930797713,17.0,13.179,13.168,57.0]
[1672930798554,17.0,13.179,13.169,20.0]
[1672930799316,13.07,13.18,13.17,17.0]
[1672930799837,13.07,13.18,13.17,73.99]
[1672930800463,13.07,13.18,13.17,56.99]
[1672930800665,13.07,13.18,13.168,57.0]
[1672930800880,20.0,13.179,13.165,57.01]
[1672930801413,20.0,13.179,13.168,57.0]
[1672930801620,20.0,13.179,13.165,77.01]
[1672930802145,20.0,13.179,13.168,17.0]
[1672930802356,20.0,13.179,13.168,57.0]
[1672930802558,17.0,13.178,13.165,57.01]
[1672930807617,20.0,13.179,13.165,57.01]
[1672930807922,20.0,13.179,13.162,22.41737149]
[1672930807923,33.07,13.18,13.169,20.0]
[1672930808146,13.07,13.18,13.169,20.0]
[1672930808538,13.07,13.18,13.17,20.0]
[1672930808752,13.07,13.18,13.172,20.0]
[1672930808981,13.07,13.18,13.173,76.98]
[1672930809174,13.07,13.18,13.173,20.0]
[1672930810859,13.07,13.18,13.171,56.99]
[1672930811078,13.07,13.18,13.168,74.0]
[1672930811298,13.07,13.18,13.168,57.0]
[1672930811710,17.0,13.179,13.168,57.0]
[1672930812747,17.0,13.179,13.167,112.8183]
[1672930815396,17.0,13.179,13.169,20.0]
[1672930815587,37.0,13.179,13.168,57.0]
[1672930816007,17.0,13.179,13.168,57.0]
[1672930816631,65.65,13.18,13.168,57.0]
[1672930816848,13.27,13.18,13.169,37.0]
[1672930817163,13.27,13.18,13.171,20.0]
[1672930818441,13.27,13.18,13.17,56.99]
[1672930818652,13.27,13.18,13.171,17.0]
[1672930818857,13.27,13.18,13.17,56.99]
[1672930819077,13.27,13.18,13.169,57.0]
[1672930820339,13.27,13.18,13.17,20.0]
[1672930820528,13.27,13.18,13.171,56.99]
[1672930820780,13.27,13.18,13.17,37.0]
[1672930821715,13.27,13.18,13.172,20.0]
[1672930821919,13.27,13.18,13.174,20.0]
[1672930822119,13.27,13.18,13.175,20.0]
[1672930822330,43.4869738,13.185,13.175,20.0]
[1672930822548,37.0,13.184,13.175,20.0]
[1672930822973,37.0,13.184,13.174,20.0]
[1672930823292,13.14,13.18,13.174,20.0]
[1672930824425,13.14,13.18,13.173,20.0]
[1672930825184,17.0,13.184,13.173,20.0]
[1672930825394,20.0,13.184,13.175,20.0]
[1672930825702,17.0,13.183,13.176,20.0]
[1672930825916,17.0,13.185,13.176,20.0]
[1672930826126,17.0,13.186,13.176,20.0]
[1672930828232,37.0,13.186,13.176,20.0]
[1672930829070,37.0,13.186,13.175,20.0]
[1672930829602,20.0,13.185,13.175,20.0]
[1672930829909,17.0,13.184,13.175,20.0]
[1672930831172,56.92,13.187,13.176,20.0]
[1672930831389,165.1614064,13.188,13.175,76.97]
[1672930831608,42.41737149,13.187,13.175,76.97]
[1672930832740,17.0,13.186,13.175,76.97]
[1672930834839,42.41737149,13.187,13.175,76.97]
[1672930835063,20.0,13.187,13.175,76.97]
[1672930836941,17.0,13.186,13.175,76.97]
[1672930838529,165.1614064,13.188,13.175,76.97]
[1672930838736,165.1614064,13.188,13.176,17.0]
[1672930839059,165.1614064,13.188,13.176,37.0]
[1672930839312,165.1614064,13.188,13.178,20.0]
[1672930839468,165.1614064,13.188,13.177,56.96]
[1672930839911,165.1614064,13.188,13.176,203.4742]
[1672930842201,165.1614064,13.188,13.176,183.4742]
[1672930842620,165.1614064,13.188,13.176,126.5042]
[1672930843149,165.1614064,13.188,13.177,20.0]
[1672930843361,56.4580064,13.188,13.177,20.0]
[1672930843577,56.4580064,13.188,13.176,109.5042]
[1672930843793,20.0,13.186,13.176,109.5042]
[1672930844310,37.0,13.187,13.176,109.5042]
[1672930845567,17.0,13.187,13.176,109.5042]
[1672930845899,20.0,13.187,13.176,166.4742]
[1672930846101,17.0,13.186,13.176,109.5042]
[1672930846415,76.92,13.187,13.176,109.5042]
[1672930846637,20.0,13.187,13.176,109.5042]
[1672930847464,17.0,13.186,13.176,109.5042]
[1672930849548,17.0,13.186,13.17,56.99]
[1672930849769,0.08890637,13.176,13.168,57.0]
[1672930850014,0.08890637,13.176,13.163,118.9425]
[1672930850309,0.08890637,13.176,13.168,20.0]
[1672930850504,0.08890637,13.176,13.164,53.49]
[1672930852196,0.08890637,13.176,13.165,20.0]
[1672930852411,0.08890637,13.176,13.166,46.38]
[1672930853265,0.08890637,13.176,13.164,43.63]
[1672930853459,0.08890637,13.176,13.164,63.63]
[1672930854728,0.08890637,13.176,13.167,112.71489065]
[1672930861569,53.91699958,13.176,13.167,112.71489065]
[1672930861783,17.0,13.175,13.167,112.71489065]
[1672930861968,37.0,13.175,13.167,112.71489065]
[1672930862199,153.87807251,13.174,13.155,29.58]
[1672930862388,153.87807251,13.174,13.155,148.6091]
[1672930862389,65.67,13.17,13.155,148.6091]
[1672930862600,17.0,13.169,13.155,148.6091]
[1672930862818,20.0,13.168,13.155,148.6091]
[1672930863335,17.0,13.169,13.155,148.6091]
[1672930863763,13.25,13.17,13.156,20.0]
[1672930864086,13.25,13.17,13.158,20.0]
[1672930864301,13.25,13.17,13.159,29.57]
[1672930864512,13.25,13.17,13.161,29.56]
[1672930866314,0.08890637,13.176,13.162,17.0]
[1672930866615,0.08890637,13.176,13.164,20.0]
[1672930867051,0.08890637,13.176,13.165,20.0]
[1672930867353,13.05,13.17,13.163,29.68]
[1672930867547,13.05,13.17,13.162,114.7915]
[1672930867548,13.05,13.17,13.161,29.68]
[1672930867768,17.0,13.169,13.161,29.68]
[1672930867955,13.05,13.17,13.161,29.68]
[1672930868171,13.05,13.17,13.162,20.0]
[1672930869230,13.05,13.17,13.161,29.68]
[1672930873029,39.41737149,13.169,13.157,29.73]
[1672930873476,22.41737149,13.168,13.157,29.73]
[1672930873965,22.41737149,13.168,13.161,29.72]
[1672930874496,13.05,13.17,13.161,29.72]
[1672930875118,22.41737149,13.169,13.161,29.72]
[1672930875319,22.41737149,13.169,13.163,20.0]
[1672930875547,22.41737149,13.169,13.162,17.0]
[1672930876069,22.41737149,13.169,13.162,37.0]
[1672930876278,22.41737149,13.169,13.161,29.72]
[1672930878050,0.08890637,13.176,13.162,57.0]
[1672930878264,22.41737149,13.175,13.163,42.48]
[1672930878469,22.41737149,13.175,13.165,20.0]
[1672930878702,22.41737149,13.175,13.166,62.73]
[1672930879839,22.41737149,13.175,13.167,20.0]
[1672930881128,22.41737149,13.175,13.166,62.73]
[1672930882480,22.41737149,13.175,13.167,20.0]
[1672930884464,0.08890637,13.176,13.167,20.0]
[1672930884693,0.08890637,13.176,13.168,70.63]
[1672930884888,0.08890637,13.176,13.169,20.0]
[1672930885315,22.50627786,13.176,13.169,20.0]
[1672930885633,0.08890637,13.176,13.169,20.0]
[1672930886059,0.08890637,13.176,13.168,70.63]
[1672930886464,0.08890637,13.176,13.169,20.0]
[1672930887312,0.08890637,13.176,13.168,70.63]
[1672930887836,0.08890637,13.176,13.169,20.0]
[1672930888144,22.50627786,13.176,13.169,20.0]
[1672930889012,22.50627786,13.176,13.168,70.63]
[1672930891944,22.50627786,13.176,13.168,53.63]
[1672930895532,22.50627786,13.176,13.167,232.1178]
[1672930897942,22.50627786,13.176,13.168,37.0]
[1672930897943,0.08890637,13.176,13.168,37.0]
[1672930898143,0.08890637,13.176,13.168,94.0]
[1672930901315,0.08890637,13.176,13.169,20.0]
[1672930901618,20.0,13.185,13.171,20.0]
[1672930901930,22.41737149,13.182,13.172,193.1121]
[1672930902129,22.41737149,13.182,13.173,20.0]
[1672930902354,22.41737149,13.182,13.174,17.0]
[1672930902552,56.92,13.187,13.175,20.0]
[1672930902750,22.41737149,13.185,13.176,20.0]
[1672930903489,22.41737149,13.185,13.175,20.0]
[1672930904975,22.41737149,13.185,13.177,20.0]
[1672930906853,22.41737149,13.185,13.178,17.0]
[1672930907064,56.92,13.187,13.178,17.0]
[1672930907495,56.92,13.187,13.177,20.0]
[1672930907693,79.33737149,13.187,13.177,20.0]
[1672930908130,56.92,13.187,13.177,20.0]
[1672930908352,172.6024064,13.188,13.178,17.0]
[1672930908550,56.92,13.187,13.178,17.0]
[1672930908774,56.4580064,13.188,13.178,17.0]
[1672930909187,56.92,13.187,13.178,17.0]
[1672930909385,56.4580064,13.188,13.178,17.0]
[1672930909813,56.92,13.187,13.178,17.0]
[1672930910020,56.4580064,13.188,13.178,17.0]
[1672930910562,68.4865865,13.197,13.18,20.0]
[1672930910754,68.4865865,13.197,13.181,93.94]
[1672930910954,68.4865865,13.197,13.182,20.0]
[1672930911284,68.4865865,13.197,13.183,93.94]
[1672930911486,68.4865865,13.197,13.184,20.0]
[1672930911693,68.4865865,13.197,13.185,73.93]
[1672930911910,68.4865865,13.197,13.187,20.0]
[1672930912131,68.4865865,13.197,13.188,93.91]
[1672930912338,68.4865865,13.197,13.189,20.0]
[1672930912573,68.4865865,13.197,13.19,93.91]
[1672930912740,68.4865865,13.197,13.191,20.0]
[1672930912956,68.4865865,13.197,13.192,93.9]
[1672930913287,68.4865865,13.197,13.193,20.0]
[1672930913518,68.4865865,13.197,13.194,37.0]
[1672930914039,56.83,13.207,13.195,20.0]
[1672930914212,85.8833506,13.208,13.196,37.0]
[1672930914422,29.0533506,13.208,13.196,37.0]
[1672930914637,29.0533506,13.208,13.197,20.0]
[1672930914859,29.0533506,13.208,13.198,17.0]
[1672930915695,29.0533506,13.208,13.197,20.0]
[1672930915908,29.0533506,13.208,13.196,20.0]
[1672930916120,85.8833506,13.208,13.197,17.0]
[1672930916338,29.0533506,13.208,13.197,17.0]
[1672930916542,29.0533506,13.208,13.196,20.0]
[1672930916945,20.0,13.207,13.196,20.0]
[1672930917166,76.83,13.207,13.196,20.0]
[1672930917383,17.0,13.206,13.195,20.0]
[1672930917586,29.0533506,13.208,13.195,20.0]
[1672930917796,73.83,13.207,13.195,20.0]
[1672930918423,73.83,13.207,13.196,17.0]
[1672930918873,56.83,13.207,13.196,17.0]
[1672930919190,29.0533506,13.208,13.196,17.0]
[1672930919403,29.0533506,13.208,13.197,20.0]
[1672930919594,29.0533506,13.208,13.198,17.0]
[1672930919939,29.0533506,13.208,13.2,20.0]
[1672930920123,29.0533506,13.208,13.201,73.86]
[1672930920549,29.0533506,13.208,13.202,40.0]
[1672930920758,29.0533506,13.208,13.203,73.85]
[1672930920968,29.0533506,13.208,13.204,20.0]
[1672930921411,29.0533506,13.208,13.205,20.0]
[1672930921709,29.0533506,13.208,13.206,20.0]
[1672930922250,56.83,13.207,13.193,20.0]
[1672930922447,56.83,13.207,13.195,20.0]
[1672930924423,17.0,13.206,13.195,20.0]
[1672930924844,17.0,13.206,13.186,56.92]
[1672930924845,56.84,13.205,13.186,56.92]
[1672930925074,39.19,13.2,13.188,5.50995653]
[1672930925388,56.87,13.199,13.188,5.50995653]
[1672930925997,39.19,13.2,13.187,76.92]
[1672930926419,39.19,13.2,13.187,20.0]
[1672930926420,20.0,13.198,13.187,20.0]
[1672930926633,20.0,13.198,13.186,119.3714]
[1672930927051,56.88,13.197,13.187,5.5103744]
[1672930927485,56.87,13.199,13.188,20.0]
[1672930927787,38.82,13.2,13.188,20.0]
[1672930928429,38.82,13.2,13.189,17.0]
[1672930929366,38.82,13.2,13.19,20.0]
[1672930929584,56.83,13.207,13.191,93.9]
[1672930929817,56.83,13.207,13.192,20.0]
[1672930930014,29.0533506,13.208,13.193,93.89]
[1672930930533,29.0533506,13.208,13.194,20.0]
[1672930930756,29.0533506,13.208,13.195,93.88]
[1672930931371,29.0533506,13.208,13.196,20.0]
[1672930931592,29.0533506,13.208,13.197,93.88]
[1672930932432,29.0533506,13.208,13.198,20.0]
[1672930932649,29.0533506,13.208,13.199,93.87]
[1672930933176,29.0533506,13.208,13.2,20.0]
[1672930933396,29.0533506,13.208,13.201,20.0]
[1672930934451,29.0533506,13.208,13.202,20.0]
[1672930934629,29.0533506,13.208,13.203,20.0]
[1672930934968,56.8,13.215,13.208,16.12004611]
[1672930936200,231.26614195,13.216,13.208,16.12004611]
[1672930936638,56.8,13.215,13.208,16.12004611]
[1672930940106,185.1421933,13.216,13.208,16.12004611]